bitfinex-derivatives/quotes_SOLF0:USTF0_20260226
["timestamp","ask_amount","ask_price","bid_price","bid_amount"]
[1772077466488,3.63261793,88.119,88.078,1.85711127]
[1772077468082,3.63261793,88.119,88.08,1.87077534]
[1772077473780,3.63261793,88.119,88.055,1.86603076]
[1772077473986,3.70273331,88.109,88.051,1.86603076]
[1772077474993,3.70273331,88.109,88.063,10.2196]
[1772077475788,3.70273331,88.109,88.054,1.83836172]
[1772077476191,3.70273331,88.099,88.054,1.83836172]
[1772077479096,3.70273331,88.099,88.055,10.2205]
[1772077479395,3.70273331,88.099,88.056,1.81142664]
[1772077480990,3.70273331,88.099,88.058,1.81633791]
[1772077491701,2.96759859,88.09,88.041,1.88598176]
[1772077491905,3.70273331,88.079,88.037,10.2226]
[1772077492900,3.70273331,88.079,88.03,1.88598176]
[1772077493600,3.70273331,88.079,88.034,1.88938106]
[1772077495001,3.70273331,88.079,88.042,12.0185984]
[1772077496701,3.70273331,88.079,88.007,188.35043059]
[1772077496702,3.52738319,88.059,88.012,1.82098014]
[1772077497804,3.52738319,88.039,87.996,1.82098014]
[1772077500306,3.52738319,88.039,87.984,12.05580003]
[1772077500510,3.52738319,88.029,87.984,12.05580003]
[1772077501106,3.52738319,88.049,87.955,1.82710003]
[1772077501306,3.52738319,88.039,87.989,1.82710003]
[1772077501705,2.96759859,88.05,87.989,1.82710003]
[1772077502003,2.96759859,88.05,87.95,159.1748]
[1772077502004,2.96759859,88.05,87.991,3.72556097]
[1772077502210,2.96759859,88.05,88.001,10.2268]
[1772077502804,8.51335754,88.079,88.007,10.226]
[1772077503004,2.96759859,88.05,88.007,10.226]
[1772077503714,3.52738319,88.049,88.007,10.226]
[1772077506207,3.52738319,88.039,87.996,10.2273]
[1772077506908,3.52738319,88.039,87.99,3.72556097]
[1772077512015,3.52738319,88.039,87.992,3.72556097]
[1772077513119,3.52738319,88.039,87.995,13.95296097]
[1772077513815,3.52738319,88.039,87.995,3.72556097]
[1772077514010,3.52738319,88.039,87.985,10.2286]
[1772077514011,3.52738319,88.029,87.971,3.72556097]
[1772077514717,3.52738319,88.029,87.982,3.72556097]
[1772077515919,3.52738319,88.04,87.991,3.72556097]
[1772077516522,6.49498178,88.04,87.991,3.72556097]
[1772077516720,3.52738319,88.039,87.991,3.72556097]
[1772077516921,3.52738319,88.039,87.995,13.95296097]
[1772077518516,3.52738319,88.039,87.996,3.72556097]
[1772077518819,3.52738319,88.039,88.0,10.2269]
[1772077519017,3.52738319,88.039,88.001,3.72556097]
[1772077519224,2.96759859,88.05,88.001,3.72556097]
[1772077519414,6.49498178,88.05,88.002,10.2266]
[1772077519617,6.49498178,88.05,88.003,3.72556097]
[1772077519817,3.52738319,88.049,88.003,3.72556097]
[1772077521023,3.52738319,88.049,88.007,10.226]
[1772077523224,3.52738319,88.049,88.003,3.72556097]
[1772077526930,3.51651886,88.047,88.003,3.72556097]
[1772077528228,3.51651886,88.036,87.988,3.8003258]
[1772077528433,3.51651886,88.029,87.974,3.8003258]
[1772077529433,3.51651886,88.029,87.98,2.97251089]
[1772077529633,3.51651886,88.029,87.991,3.8003258]
[1772077529840,3.51651886,88.049,87.991,3.8003258]
[1772077531032,3.51651886,88.046,87.991,3.8003258]
[1772077532735,3.51651886,88.046,87.994,3.83150441]
[1772077533836,3.86044228,88.039,87.982,3.83150441]
[1772077534041,3.86044228,88.029,87.982,3.83150441]
[1772077534340,3.86044228,88.029,87.971,3.83150441]
[1772077534738,3.86044228,88.029,87.974,3.83150441]
[1772077536341,3.86044228,88.029,87.977,3.83150441]
[1772077536540,3.86044228,88.044,87.991,3.83150441]
[1772077536740,3.86044228,88.044,88.001,3.83150441]
[1772077544748,2.97251089,88.05,88.004,3.83150441]
[1772077545947,6.83295317,88.05,88.015,10.2252]
[1772077546740,3.86044228,88.049,88.015,10.2252]
[1772077547547,3.86044228,88.049,88.006,3.83150441]
[1772077549352,3.86044228,88.049,88.007,10.226]
[1772077549651,3.86044228,88.049,88.008,3.83150441]
[1772077553046,3.86044228,88.039,87.996,14.05880441]
[1772077553948,3.86044228,88.039,87.997,3.83150441]
[1772077555554,3.86044228,88.039,87.999,3.83150441]
[1772077556847,3.86044228,88.039,88.0,10.2269]
[1772077557053,3.86044228,88.039,88.001,3.54595859]
[1772077557755,3.51619409,88.053,88.004,3.54595859]
[1772077557958,3.51619409,88.065,88.011,3.54595859]
[1772077558156,3.51619409,88.078,88.039,3.54595859]
[1772077558458,10.2158,88.096,87.979,34.05]
[1772077558459,2.97251089,88.09,88.041,3.54595859]
[1772077559054,6.48870498,88.09,88.041,3.54595859]
[1772077559257,3.51619409,88.09,88.051,3.54595859]
[1772077559455,2.97251089,88.1,88.051,3.54595859]
[1772077560250,6.48870498,88.1,88.051,3.54595859]
[1772077562362,6.48870498,88.1,87.987,34.05]
[1772077562363,2.97251089,88.11,88.061,3.54595859]
[1772077562664,3.51619409,88.099,88.048,3.54595859]
[1772077563062,3.51619409,88.099,88.051,3.54595859]
[1772077563454,3.51619409,88.114,88.061,3.54595859]
[1772077564857,3.51619409,88.114,88.061,13.76565859]
[1772077565058,3.51619409,88.114,88.062,3.54595859]
[1772077565858,3.51619409,88.114,88.064,10.2194]
[1772077566056,3.51619409,88.114,88.065,3.54595859]
[1772077567966,3.51619409,88.114,88.067,10.2191]
[1772077568364,3.51619409,88.114,88.065,3.54595859]
[1772077571856,3.51619409,88.114,88.066,10.2191]
[1772077572063,3.51619409,88.114,88.067,3.54595859]
[1772077572465,3.51619409,88.126,88.071,3.54595859]
[1772077573164,3.51619409,88.126,88.076,3.54595859]
[1772077573365,3.51619409,88.126,88.081,3.54595859]
[1772077574768,3.51619409,88.139,88.081,3.54595859]
[1772077575070,3.51619409,88.139,88.084,3.54595859]
[1772077575970,3.51619409,88.139,88.087,3.54595859]
[1772077576369,3.51619409,88.139,88.091,3.54595859]
[1772077576571,3.51619409,88.139,88.094,3.54595859]
[1772077577472,3.51619409,88.139,88.104,10.2148]
[1772077577670,3.51619409,88.139,88.104,13.76075859]
[1772077578166,3.51619409,88.139,88.094,3.54595859]
[1772077579873,3.51619409,88.139,88.097,10.2156]
[1772077581975,3.51619409,88.139,88.106,10.2145]
[1772077582177,3.51619409,88.139,88.094,3.54595859]
[1772077583077,3.51619409,88.139,88.105,10.2146]
[1772077598688,3.51619409,88.139,88.105,14.06810875]
[1772077598883,3.51619409,88.139,88.106,3.85350875]
[1772077599285,273.00229119,88.171,88.109,3.85350875]
[1772077599577,273.00229119,88.171,88.055,179.4262]
[1772077599578,3.73867659,88.169,88.111,3.85350875]
[1772077599984,3.73867659,88.169,88.128,10.212]
[1772077600178,3.73867659,88.169,88.129,3.85350875]
[1772077601187,2.96625164,88.16,88.129,3.85350875]
[1772077602392,3.73867659,88.169,88.129,3.85350875]
[1772077603587,3.73867659,88.159,88.118,14.06660875]
[1772077603792,6.70492823,88.15,88.118,10.2131]
[1772077604787,3.73867659,88.17,88.122,10.2127]
[1772077604992,3.73867659,88.17,88.123,3.85350875]
[1772077604993,2.96625164,88.16,88.123,3.85350875]
[1772077605992,2.96625164,88.16,88.125,10.2123]
[1772077606689,2.96625164,88.16,88.123,3.85350875]
[1772077608089,3.73867659,88.169,88.125,3.85350875]
[1772077608291,273.00229119,88.171,88.131,3.85350875]
[1772077608491,3.73867659,88.182,88.141,3.85350875]
[1772077608690,2.96625164,88.2,88.146,3.85350875]
[1772077608691,3.73867659,88.199,88.146,3.85350875]
[1772077608996,3.73867659,88.189,88.146,3.85350875]
[1772077610394,3.73867659,88.189,88.148,3.85350875]
[1772077611400,6.70492823,88.2,88.148,3.85350875]
[1772077611695,3.73867659,88.2,88.153,3.85350875]
[1772077611998,3.73867659,88.189,88.153,3.85350875]
[1772077612193,3.73867659,88.189,88.141,3.85350875]
[1772077612787,3.73867659,88.189,88.149,10.2095]
[1772077615304,3.73867659,88.189,88.14,2.96625164]
[1772077615305,3.73867659,88.189,88.152,14.06280875]
[1772077617198,3.73867659,88.189,88.152,3.85350875]
[1772077617395,10.2029,88.208,88.142,10.2103]
[1772077617396,3.8231753,88.179,88.142,10.2103]
[1772077617597,3.8231753,88.179,88.143,3.60219072]
[1772077618001,2.96625164,88.18,88.143,3.60219072]
[1772077618404,3.8231753,88.189,88.143,3.60219072]
[1772077618905,3.8231753,88.189,88.145,10.21]
[1772077619802,3.8231753,88.189,88.146,3.60219072]
[1772077619999,3.8231753,88.189,87.893,112.75000355]
[1772077620000,3.8231753,88.179,88.135,10.2112]
[1772077620502,3.8231753,88.179,88.124,10.2124]
[1772077620704,3.8231753,88.169,88.125,3.60219072]
[1772077622006,3.8231753,88.149,88.101,3.60219072]
[1772077622402,3.8231753,88.149,88.118,10.2131]
[1772077623608,3.8231753,88.149,88.1,6.56844236]
[1772077623799,2.96625164,88.14,88.1,3.60219072]
[1772077624202,3.8231753,88.149,88.1,3.60219072]
[1772077624407,2.96625164,88.14,88.1,3.60219072]
[1772077625008,2.96625164,88.14,88.102,10.215]
[1772077625607,2.96625164,88.14,88.103,3.60219072]
[1772077627006,2.96625164,88.17,88.121,3.60219072]
[1772077627409,3.8231753,88.197,88.141,3.60219072]
[1772077628902,3.8231753,88.197,88.151,3.60219072]
[1772077629508,3.8231753,88.197,88.155,3.60219072]
[1772077629702,2.96625164,88.21,88.155,3.60219072]
[1772077630013,2.96625164,88.21,88.161,3.60219072]
[1772077631013,2.96625164,88.21,88.17,10.2072]
[1772077631212,3.8231753,88.209,88.161,3.60219072]
[1772077631412,2.96625164,88.2,88.161,3.60219072]
[1772077631612,3.8231753,88.199,88.161,3.60219072]
[1772077632612,3.8231753,88.199,88.162,10.2081]
[1772077632812,2.96625164,88.21,88.163,3.60219072]
[1772077633713,6.78942694,88.21,88.163,3.60219072]
[1772077634014,3.8231753,88.209,88.17,10.2071]
[1772077634407,3.8231753,88.209,88.163,3.60219072]
[1772077636016,3.8231753,88.209,88.165,10.2077]
[1772077636214,3.8231753,88.209,88.15,6.56844236]
[1772077636412,3.8231753,88.199,88.141,3.60219072]
[1772077637012,3.8231753,88.189,88.141,3.60219072]
[1772077637710,2.96625164,88.2,88.141,3.60219072]
[1772077638112,2.96625164,88.2,88.152,3.60219072]
[1772077638413,281.09214671,88.211,88.152,3.60219072]
[1772077638414,3.8231753,88.189,88.152,3.60219072]
[1772077638608,3.8231753,88.189,88.14,2.96625164]
[1772077638809,2.96625164,88.19,88.083,54.4844]
[1772077638810,3.8231753,88.179,88.13,2.96625164]
[1772077639014,3.8231753,88.179,88.131,3.60219072]
[1772077639918,3.8231753,88.179,88.12,2.96625164]
[1772077639919,3.8231753,88.179,88.132,3.60219072]
[1772077641017,3.8231753,88.179,88.138,3.60219072]
[1772077642019,3.8231753,88.179,88.14,13.81289072]
[1772077643016,3.8231753,88.179,88.141,3.60219072]
[1772077643419,3.8231753,88.179,88.142,13.81259072]
[1772077643814,2.96330562,88.19,88.143,3.60219072]
[1772077644224,6.78648092,88.19,88.143,3.60219072]
[1772077645117,3.8231753,88.189,88.143,3.60219072]
[1772077645919,3.8231753,88.189,88.144,13.88441791]
[1772077647825,3.8231753,88.189,88.153,10.2091]
[1772077648423,3.8231753,88.189,88.145,3.67421791]
[1772077648724,2.96330562,88.18,88.145,3.67421791]
[1772077651227,3.8231753,88.189,88.145,3.67421791]
[1772077654925,2.96330562,88.18,88.145,3.67421791]
[1772077655323,2.96330562,88.16,88.111,3.86154497]
[1772077655522,3.66599943,88.159,88.111,3.86154497]
[1772077656526,3.66599943,88.159,88.113,3.86154497]
[1772077657031,2.96330562,88.17,88.113,3.86154497]
[1772077657231,3.66599943,88.169,88.113,3.86154497]
[1772077657534,3.66599943,88.169,88.124,10.2124]
[1772077657724,3.66599943,88.169,88.124,14.07394497]
[1772077658227,3.66599943,88.169,88.125,3.86154497]
[1772077661624,3.66599943,88.169,88.127,10.2122]
[1772077661825,3.66599943,88.181,88.128,3.86154497]
[1772077662033,2.96330562,88.19,88.141,3.86154497]
[1772077662735,2.96330562,88.19,88.145,10.2101]
[1772077662934,2.96330562,88.19,88.146,3.86154497]
[1772077664035,3.66599943,88.195,88.152,10.2092]
[1772077665337,3.66599943,88.195,88.094,158.9161]
[1772077665338,3.66599943,88.207,88.163,3.86154497]
[1772077666530,3.66599943,88.207,88.15,2.96330562]
[1772077666737,3.66599943,88.199,88.15,6.82485059]
[1772077667127,3.66599943,88.199,88.151,3.86154497]
[1772077667932,3.66599943,88.199,88.154,3.86154497]
[1772077669037,3.66599943,88.199,88.158,3.86154497]
[1772077669239,2.96330562,88.21,88.158,3.86154497]
[1772077669437,6.62930505,88.21,88.158,3.86154497]
[1772077669735,6.62930505,88.21,88.163,3.86154497]
[1772077669931,281.09214671,88.211,88.163,3.86154497]
[1772077670538,281.09214671,88.211,88.171,3.86154497]
[1772077674742,281.09214671,88.211,88.172,10.2069]
[1772077675639,284.75814614,88.211,88.172,10.2069]
[1772077677740,3.78615357,88.199,88.161,10.2082]
[1772077678135,6.74945919,88.21,88.162,3.78736385]
[1772077678336,3.78615357,88.209,88.162,3.78736385]
[1772077679341,2.96330562,88.2,88.162,3.78736385]
[1772077679540,6.74945919,88.2,88.162,3.78736385]
[1772077679937,3.78615357,88.199,88.163,10.2079]
[1772077680235,3.78615357,88.199,88.147,3.78736385]
[1772077680433,3.78615357,88.189,88.147,3.78736385]
[1772077682046,3.78615357,88.189,88.154,10.209]
[1772077684241,3.78615357,88.189,88.164,10.2079]
[1772077684440,281.09214671,88.211,88.165,3.78736385]
[1772077684636,2.96330562,88.21,88.165,3.78736385]
[1772077685041,3.78615357,88.209,88.165,3.78736385]
[1772077686044,3.78615357,88.209,88.168,10.2074]
[1772077699554,281.09214671,88.211,88.18,3.78736385]
[1772077703546,6.74706225,88.22,88.18,3.78736385]
[1772077704656,8.46688852,88.237,88.191,3.78736385]
[1772077704958,3.78615357,88.243,88.191,3.78736385]
[1772077705359,3.78615357,88.258,88.203,3.78736385]
[1772077705749,3.78615357,88.258,88.21,3.57239208]
[1772077706862,3.78615357,88.258,88.159,20.4168]
[1772077706863,6.72245396,88.22,88.171,3.57239208]
[1772077707061,3.76154528,88.219,88.182,10.2057]
[1772077711765,3.76154528,88.219,88.173,3.57239208]
[1772077712462,3.76154528,88.219,88.175,3.57239208]
[1772077713961,3.76154528,88.219,88.177,3.82530742]
[1772077714969,3.76154528,88.219,88.179,10.2061]
[1772077715170,3.76154528,88.219,88.18,3.82530742]
[1772077721082,3.76154528,88.219,88.19,10.2048]
[1772077724983,3.76154528,88.219,88.182,3.82530742]
[1772077727685,3.76154528,88.219,88.185,3.82530742]
[1772077728289,3.62443289,88.241,88.191,3.82530742]
[1772077728687,2.96090868,88.25,88.201,3.82530742]
[1772077729988,2.96090868,88.25,88.205,3.82530742]
[1772077730288,3.62443289,88.262,88.211,3.82530742]
[1772077730485,3.62443289,88.259,88.211,3.82530742]
[1772077730690,3.62443289,88.249,88.191,3.82530742]
[1772077730888,3.62443289,88.239,88.191,3.82530742]
[1772077731085,2.96090868,88.21,88.178,3.82530742]
[1772077731587,3.62443289,88.219,88.178,3.82530742]
[1772077731780,3.62443289,88.219,88.181,3.82530742]
[1772077733089,3.62443289,88.219,88.182,10.2057]
[1772077733392,3.62443289,88.219,88.182,14.03100742]
[1772077733596,10.1985,88.246,88.186,3.82530742]
[1772077733597,3.62443289,88.231,88.186,3.82530742]
[1772077734284,3.62443289,88.219,88.168,3.82530742]
[1772077734485,3.62443289,88.209,88.158,3.82530742]
[1772077734684,3.62443289,88.189,88.14,3.82530742]
[1772077734889,3.62443289,88.189,88.141,3.82530742]
[1772077735888,3.62443289,88.189,88.147,10.2098]
[1772077736189,3.62443289,88.189,88.148,3.75667355]
[1772077736391,3.62443289,88.189,88.102,20.43]
[1772077736392,2.96090868,88.2,88.154,3.75667355]
[1772077736591,6.75958254,88.2,88.154,3.75667355]
[1772077737093,6.75958254,88.2,88.162,13.96467355]
[1772077737290,34.02,88.243,88.102,20.43]
[1772077737291,2.96090868,88.21,88.163,3.75667355]
[1772077737489,3.79867386,88.217,88.163,3.75667355]
[1772077738287,3.79867386,88.209,88.16,2.96090868]
[1772077738497,6.75958254,88.2,88.155,3.75667355]
[1772077738992,3.79867386,88.199,88.155,3.75667355]
[1772077739196,3.79867386,88.199,88.141,3.75667355]
[1772077739895,3.79867386,88.199,88.147,10.2098]
[1772077740296,2.96090868,88.19,88.147,10.2098]
[1772077741697,3.79867386,88.199,88.151,10.2093]
[1772077742698,2.96090868,88.21,88.155,3.75667355]
[1772077742897,3.79867386,88.214,88.155,3.75667355]
[1772077743099,2.96090868,88.21,88.155,3.75667355]
[1772077743297,3.79867386,88.209,88.155,3.75667355]
[1772077743498,3.79867386,88.209,88.15,2.96090868]
[1772077743499,3.79867386,88.209,88.157,3.75667355]
[1772077744001,3.79867386,88.189,88.143,3.75667355]
[1772077744200,3.79867386,88.189,88.144,10.2102]
[1772077744392,3.79867386,88.189,88.144,13.96687355]
[1772077744701,3.79867386,88.189,88.144,3.75667355]
[1772077747103,6.75958254,88.16,88.12,3.75667355]
[1772077752796,3.79867386,88.159,88.12,3.75667355]
[1772077753002,3.79867386,88.149,88.106,3.75667355]
[1772077758409,3.79867386,88.149,88.109,10.2142]
[1772077762004,2.96090868,88.16,88.113,3.75667355]
[1772077762212,11.36,88.227,88.113,3.75667355]
[1772077762213,2.96090868,88.17,88.113,3.75667355]
[1772077762607,3.79867386,88.169,88.123,3.75667355]
[1772077763611,3.79867386,88.169,88.126,10.2122]
[1772077765615,3.79867386,88.169,88.131,3.75667355]
[1772077766011,2.96488911,88.18,88.131,3.75667355]
[1772077767019,2.96488911,88.18,88.135,3.56307224]
[1772077767815,44.2236,88.202,88.13,2.96488911]
[1772077767816,2.96488911,88.19,88.139,3.56307224]
[1772077768921,3.72119753,88.199,88.143,3.56307224]
[1772077770024,3.72119753,88.199,88.148,13.77277224]
[1772077770225,3.72119753,88.199,88.149,3.56307224]
[1772077772524,34.02,88.245,88.118,3.84397984]
[1772077772525,3.85229061,88.169,88.118,3.84397984]
[1772077772728,2.96488911,88.16,88.118,3.84397984]
[1772077772917,3.85229061,88.169,88.118,3.84397984]
[1772077774022,3.85229061,88.169,88.12,10.2129]
[1772077774527,3.85229061,88.169,88.125,10.2123]
[1772077776123,3.85229061,88.169,88.134,10.2113]
[1772077776429,3.85229061,88.169,88.126,3.84397984]
[1772077776430,2.96488911,88.18,88.135,3.84397984]
[1772077776624,3.85229061,88.182,88.135,3.84397984]
[1772077776824,3.85229061,88.196,88.149,3.84397984]
[1772077777720,3.85229061,88.196,88.095,20.4317]
[1772077777721,3.85229061,88.179,88.131,3.84397984]
[1772077777935,3.85229061,88.169,88.12,2.96488911]
[1772077778126,3.85229061,88.169,88.119,14.05707984]
[1772077778321,3.85229061,88.169,88.12,3.84397984]
[1772077778725,3.85229061,88.169,88.121,3.84397984]
[1772077779031,2.96488911,88.18,88.125,3.84397984]
[1772077779526,6.81717972,88.18,88.125,3.84397984]
[1772077779933,6.81717972,88.18,88.131,3.84397984]
[1772077783329,3.85229061,88.179,88.131,3.84397984]
[1772077788428,2.96488911,88.17,88.131,3.84397984]
[1772077788623,3.85229061,88.169,88.118,3.84397984]
[1772077788829,3.85229061,88.159,88.118,3.84397984]
[1772077789926,2.96488911,88.17,88.118,3.84397984]
[1772077790235,3.85229061,88.169,88.118,3.84397984]
[1772077791036,3.85229061,88.169,88.121,10.2128]
[1772077794441,3.85229061,88.169,88.118,3.84397984]
[1772077794845,3.85229061,88.168,88.118,3.84397984]
[1772077798136,2.96488911,88.17,88.118,3.84397984]
[1772077798137,3.82401712,88.166,88.118,3.84397984]
[1772077798738,3.82401712,88.159,88.118,3.84397984]
[1772077799737,3.82401712,88.159,88.111,10.2139]
[1772077799938,3.82401712,88.159,88.106,3.77679898]
[1772077800835,3.82401712,88.149,88.106,3.77679898]
[1772077801342,3.82401712,88.129,88.08,10.2176]
[1772077801539,3.82401712,88.129,88.08,13.99439898]
[1772077801938,3.82401712,88.129,88.08,3.77679898]
[1772077802343,8.42948661,88.158,88.018,213.522]
[1772077802344,2.96488911,88.11,88.061,3.77679898]
[1772077802545,3.82401712,88.109,88.061,3.77679898]
[1772077802744,3.82401712,88.099,88.051,3.77679898]
[1772077803247,2.96488911,88.11,88.051,3.77679898]
[1772077803440,3.82401712,88.109,88.051,3.77679898]
[1772077803637,3.82401712,88.106,88.055,3.77679898]
[1772077809443,3.82401712,88.099,88.055,3.77679898]
[1772077811448,3.82401712,88.089,88.032,13.99989898]
[1772077811650,3.82401712,88.079,88.033,3.77679898]
[1772077812050,3.82401712,88.079,87.999,1.97608259]
[1772077812051,3.82401712,88.094,88.041,3.77679898]
[1772077812451,3.82401712,88.094,88.051,3.77679898]
[1772077815344,3.82401712,88.089,88.039,3.77679898]
[1772077815942,3.82401712,88.079,88.039,3.77679898]
[1772077818944,3.82401712,88.079,88.026,3.77679898]
[1772077819350,3.82401712,88.075,88.026,3.77679898]
[1772077819550,3.82401712,88.075,87.978,21.10448806]
[1772077819551,3.82401712,88.059,88.001,3.77679898]
[1772077819950,2.96488911,88.07,88.021,3.77679898]
[1772077820254,3.82401712,88.072,88.021,3.77679898]
[1772077822053,3.82401712,88.072,88.023,3.77679898]
[1772077822254,3.82401712,88.072,88.031,3.77679898]
[1772077823855,3.82401712,88.072,88.035,10.2228]
[1772077824457,3.82401712,88.072,88.031,3.77679898]
[1772077824854,2.96488911,88.09,88.041,3.77679898]
[1772077825248,2.96996372,88.08,88.041,3.77679898]
[1772077825452,3.82401712,88.079,88.021,3.77679898]
[1772077826859,3.82401712,88.079,88.027,10.2238]
[1772077827059,3.82401712,88.079,88.028,3.72746846]
[1772077827754,3.69330779,88.076,88.028,3.72746846]
[1772077827962,3.69330779,88.069,88.016,3.72746846]
[1772077828654,2.96996372,88.06,88.016,3.72746846]
[1772077829861,3.69330779,88.069,88.018,3.72746846]
[1772077830855,3.69330779,88.069,88.019,10.2247]
[1772077831159,3.69330779,88.069,88.021,3.72746846]
[1772077831858,3.69330779,88.069,88.021,13.95186846]
[1772077832161,3.69330779,88.069,88.022,3.72746846]
[1772077833751,2.96996372,88.08,88.026,3.75449699]
[1772077833953,3.85121611,88.082,88.031,3.75449699]
[1772077834963,3.85121611,88.082,88.035,3.75449699]
[1772077835352,2.96996372,88.08,88.035,3.75449699]
[1772077835556,3.85121611,88.079,88.035,3.75449699]
[1772077844861,3.85121611,88.079,88.03,2.96996372]
[1772077844862,3.85121611,88.079,88.038,3.75449699]
[1772077846356,3.85121611,88.079,88.027,10.2237]
[1772077846357,3.85121611,88.079,88.027,13.97819699]
[1772077846566,3.85121611,88.079,88.028,3.75449699]
[1772077847158,3.85121611,88.079,88.031,3.75449699]
[1772077848969,3.85121611,88.079,88.034,3.75449699]
[1772077855273,3.85121611,88.075,88.034,3.75449699]
[1772077865571,8.45990418,88.084,88.046,3.52315841]
[1772077865772,3.69285459,88.089,88.046,3.52315841]
[1772077866669,8.45990418,88.094,88.05,2.96996372]
[1772077866875,8.45990418,88.101,88.051,3.52315841]
[1772077867072,8.45990418,88.1,88.051,3.52315841]
[1772077867368,8.45990418,88.1,88.05,2.96996372]
[1772077867369,3.69285459,88.101,88.054,3.52315841]
[1772077867677,3.69285459,88.101,87.989,62.22349754]
[1772077867678,3.69285459,88.099,88.044,3.52315841]
[1772077867874,3.69285459,88.099,88.051,3.52315841]
[1772077868579,3.69285459,88.099,88.054,3.52315841]
[1772077869474,3.69285459,88.111,88.061,3.52315841]
[1772077869666,3.69285459,88.109,88.061,3.52315841]
[1772077871577,3.69285459,88.109,88.063,3.52315841]
[1772077873773,2.96996372,88.09,88.042,3.52315841]
[1772077874079,3.69285459,88.089,88.042,3.52315841]
[1772077876478,3.69285459,88.089,87.999,28.20349754]
[1772077876479,3.69285459,88.069,88.02,3.52315841]
[1772077876981,3.69285459,88.069,88.021,3.52315841]
[1772077879178,3.69285459,88.084,88.035,3.52315841]
[1772077879875,158.8198,88.148,87.989,28.20349754]
[1772077879876,3.69285459,88.099,88.041,3.52315841]
[1772077880982,3.69285459,88.099,88.042,3.52315841]
[1772077881982,3.69285459,88.099,88.045,3.52315841]
[1772077883482,3.69285459,88.099,88.047,10.2214]
[1772077883785,3.69285459,88.099,88.048,3.52315841]
[1772077884987,3.69285459,88.099,88.05,3.52315841]
[1772077885992,3.5066946,88.096,88.05,3.52315841]
[1772077886900,3.5066946,88.094,88.05,3.52315841]
[1772077887305,3.5066946,88.079,88.039,3.74133264]
[1772077889995,3.5066946,88.089,88.041,3.74133264]
[1772077892000,3.5066946,88.086,88.041,3.74133264]
[1772077896802,2.96903955,88.09,88.041,3.74133264]
[1772077897003,3.83840339,88.089,88.041,3.74133264]
[1772077898806,3.83840339,88.088,88.041,3.74133264]
[1772077899796,3.83840339,88.086,88.041,3.74133264]
[1772077900805,3.83840339,88.084,88.041,3.74133264]
[1772077902307,3.83840339,88.082,88.041,3.74133264]
[1772077902510,2.96903955,88.08,88.021,3.57167626]
[1772077902809,3.83840339,88.069,88.021,3.57167626]
[1772077904009,14.05770339,88.066,88.021,3.57167626]
[1772077904210,3.83840339,88.066,88.021,3.57167626]
[1772077904714,10.2182,88.076,88.021,3.57167626]
[1772077905109,14.05660339,88.076,88.021,3.57167626]
[1772077905910,14.05660339,88.076,88.025,3.57167626]
[1772077907816,3.83840339,88.075,88.025,3.57167626]
[1772077909213,3.83840339,88.069,88.025,3.57167626]
[1772077911719,3.83840339,88.069,88.031,10.2233]
[1772077911917,3.83840339,88.069,88.025,3.57167626]
[1772077911918,3.83840339,88.069,88.032,3.82369942]
[1772077913024,3.83840339,88.069,88.037,10.2225]
[1772077916310,3.862325,88.079,88.038,3.73710264]
[1772077916514,2.96903955,88.07,88.038,3.73710264]
[1772077919919,3.862325,88.069,88.038,3.73710264]
[1772077920721,3.862325,88.069,88.027,13.96090264]
[1772077920923,3.862325,88.069,88.028,3.73710264]
[1772077923924,3.862325,88.049,88.005,3.73710264]
[1772077924120,10.6118271,88.103,88.005,3.73710264]
[1772077924121,2.96903955,88.06,88.005,3.73710264]
[1772077924324,2.96903955,88.06,87.979,23.16694102]
[1772077924325,3.862325,88.06,88.011,3.73710264]
[1772077924520,3.862325,88.072,88.033,3.73710264]
[1772077926030,3.862325,88.072,88.036,3.73710264]
[1772077926224,3.862325,88.095,88.041,3.73710264]
[1772077927019,3.862325,88.095,88.057,3.73710264]
[1772077927222,3.862325,88.109,88.057,3.73710264]
[1772077928028,3.862325,88.109,88.062,3.73710264]
[1772077930032,3.862325,88.109,88.066,3.73710264]
[1772077930931,3.862325,88.109,88.068,3.73710264]
[1772077931329,3.862325,88.109,88.015,159.0589]
[1772077931330,6.83136455,88.12,88.071,3.73710264]
[1772077931731,3.862325,88.119,88.071,3.73710264]
[1772077933032,3.862325,88.119,88.076,10.2181]
[1772077934434,3.862325,88.119,88.076,13.95520264]
[1772077934733,3.862325,88.119,88.076,3.73710264]
[1772077942437,3.862325,88.119,88.016,34.02]
[1772077942438,3.862325,88.119,88.079,3.73710264]
[1772077942735,10.6118271,88.169,88.024,159.0413]
[1772077942736,6.83136455,88.14,88.081,3.73710264]
[1772077942939,3.862325,88.148,88.091,3.73710264]
[1772077943937,3.862325,88.148,88.104,3.73710264]
[1772077945744,10.209,88.155,88.104,3.73710264]
[1772077945745,3.86841308,88.139,88.104,3.73710264]
[1772077948748,3.86841308,88.139,88.026,28.20349754]
[1772077948749,3.86841308,88.119,88.078,3.78926153]
[1772077949553,3.86841308,88.109,88.069,10.2189]